[Event "Titled Tuesday Blitz August 08 Late 2023"]
[White "Willy, Stephen"]
[Black "Matinian, Nikita"]
[WhiteFideId "30981468"]
[BlackFideId "24129100"]
[WhiteElo "2531"]
[BlackElo "2701"]
[Result "1-0"]
[Round "7"]
[TimeControl "180+1"]
[Date "2023.08.08"]
[WhiteClock "0:01:10"]
[BlackClock "0:00:00"]
[Board "45"]

1. e4 {[%clk 0:03:00]}  c5 {[%clk 0:02:59]} 2. c3 {[%clk 0:02:59]}  Nf6 {[%clk 0:02:58]} 3. e5 {[%clk 0:02:59]}  Nd5 {[%clk 0:02:59]} 4. Nf3 {[%clk 0:02:58]}  Nc6 {[%clk 0:02:58]} 5. Bc4 {[%clk 0:02:59]}  Nb6 {[%clk 0:02:58]} 6. Bb3 {[%clk 0:03:00]}  d5 {[%clk 0:02:53]} 7. exd6 {[%clk 0:02:58]}  Qxd6 {[%clk 0:02:53]} 8. O-O {[%clk 0:02:58]}  c4 {[%clk 0:02:53]} 9. Bc2 {[%clk 0:02:58]}  Bg4 {[%clk 0:02:53]} 10. Re1 {[%clk 0:02:58]}  O-O-O {[%clk 0:02:53]} 11. b3 {[%clk 0:02:56]}  Qf6 {[%clk 0:02:47]} 12. Be4 {[%clk 0:02:55]}  Ne5 {[%clk 0:02:24]} 13. Re3 {[%clk 0:02:48]}  Nd5 {[%clk 0:02:16]} 14. Re1 {[%clk 0:02:36]}  Nf4 {[%clk 0:02:06]} 15. bxc4 {[%clk 0:02:26]}  Nh3+ {[%clk 0:01:22]} 16. Kf1 {[%clk 0:02:18]}  Ng5 {[%clk 0:01:22]} 17. d4 {[%clk 0:02:03]}  Nexf3 {[%clk 0:01:13]} 18. Bxg5 {[%clk 0:01:55]}  Nxh2+ {[%clk 0:00:55]} 19. Kg1 {[%clk 0:01:53]}  Qxg5 {[%clk 0:00:55]} 20. Qb3 {[%clk 0:01:45]}  Nf3+ {[%clk 0:00:54]} 21. Kf1 {[%clk 0:01:43]}  Nh2+ {[%clk 0:00:32]} 22. Kg1 {[%clk 0:01:42]}  Rd7 {[%clk 0:00:26]} 23. Kxh2 {[%clk 0:01:42]}  h5 {[%clk 0:00:27]} 24. Qa4 {[%clk 0:01:29]}  a6 {[%clk 0:00:17]} 25. c5 {[%clk 0:01:27]}  Rh6 {[%clk 0:00:17]} 26. c6 {[%clk 0:01:26]}  Rxc6 {[%clk 0:00:05]} 27. Bxc6 {[%clk 0:01:26]}  bxc6 {[%clk 0:00:06]} 28. Qxc6+ {[%clk 0:01:21]}  Rc7 {[%clk 0:00:05]} 29. Qe8+ {[%clk 0:01:14]}  Kb7 {[%clk 0:00:05]} 30. Qxf8 {[%clk 0:01:15]}  Qf4+ {[%clk 0:00:03]} 31. Kg1 {[%clk 0:01:14]}  Bf3 {[%clk 0:00:03]} 32. Qxg7 {[%clk 0:01:12]}  Bd5 {[%clk 0:00:00]} 33. Qe5 {[%clk 0:01:10]} 1-0


[Site "https://www.chess.com"]

[Event "Titled Tuesday Blitz August 08 Late 2023"]
[White "Rastbod, Ali"]
[Black "Zeman, Matyas"]
[WhiteFideId "12567477"]
[BlackFideId "364398"]
[WhiteElo "2691"]
[BlackElo "2503"]
[Result "0-1"]
[Round "7"]
[TimeControl "180+1"]
[Date "2023.08.08"]
[WhiteClock "0:00:00"]
[BlackClock "0:00:03"]
[Board "47"]

1. e4 {[%clk 0:03:00]}  e6 {[%clk 0:02:58]} 2. d4 {[%clk 0:03:00]}  d5 {[%clk 0:02:59]} 3. Bd3 {[%clk 0:03:01]}  dxe4 {[%clk 0:02:59]} 4. Bxe4 {[%clk 0:03:02]}  Nf6 {[%clk 0:02:59]} 5. Bf3 {[%clk 0:03:03]}  c5 {[%clk 0:02:59]} 6. Ne2 {[%clk 0:03:03]}  Nc6 {[%clk 0:02:57]} 7. Be3 {[%clk 0:03:04]}  cxd4 {[%clk 0:02:57]} 8. Nxd4 {[%clk 0:03:04]}  Ne5 {[%clk 0:02:57]} 9. Nc3 {[%clk 0:03:03]}  Be7 {[%clk 0:02:55]} 10. Qe2 {[%clk 0:02:57]}  O-O {[%clk 0:02:53]} 11. O-O-O {[%clk 0:02:57]}  Nxf3 {[%clk 0:02:51]} 12. Qxf3 {[%clk 0:02:55]}  Qa5 {[%clk 0:02:47]} 13. Nb3 {[%clk 0:02:45]}  Qc7 {[%clk 0:02:09]} 14. g4 {[%clk 0:02:27]}  Bd7 {[%clk 0:01:55]} 15. g5 {[%clk 0:02:20]}  Bc6 {[%clk 0:01:54]} 16. Qh3 {[%clk 0:02:21]}  Nd5 {[%clk 0:01:53]} 17. Nxd5 {[%clk 0:01:34]}  Bxd5 {[%clk 0:01:54]} 18. Rxd5 {[%clk 0:01:27]}  exd5 {[%clk 0:01:54]} 19. Qf5 {[%clk 0:01:27]}  Rad8 {[%clk 0:01:41]} 20. h4 {[%clk 0:01:27]}  Qd7 {[%clk 0:00:56]} 21. Qf3 {[%clk 0:01:24]}  b6 {[%clk 0:00:53]} 22. h5 {[%clk 0:01:22]}  f5 {[%clk 0:00:48]} 23. h6 {[%clk 0:01:11]}  g6 {[%clk 0:00:48]} 24. Rd1 {[%clk 0:01:10]}  f4 {[%clk 0:00:46]} 25. Bd4 {[%clk 0:00:57]}  Bxg5 {[%clk 0:00:46]} 26. Kb1 {[%clk 0:00:54]}  Bxh6 {[%clk 0:00:44]} 27. Rh1 {[%clk 0:00:47]}  Bg7 {[%clk 0:00:44]} 28. a3 {[%clk 0:00:47]}  a5 {[%clk 0:00:39]} 29. c3 {[%clk 0:00:36]}  a4 {[%clk 0:00:37]} 30. Bxg7 {[%clk 0:00:36]}  Qxg7 {[%clk 0:00:34]} 31. Nd4 {[%clk 0:00:37]}  Qe5 {[%clk 0:00:26]} 32. Ka2 {[%clk 0:00:37]}  Rf7 {[%clk 0:00:23]} 33. Qh3 {[%clk 0:00:33]}  f3 {[%clk 0:00:19]} 34. Qh4 {[%clk 0:00:31]}  Re8 {[%clk 0:00:18]} 35. Rg1 {[%clk 0:00:29]}  Qf4 {[%clk 0:00:15]} 36. Qh5 {[%clk 0:00:25]}  Re4 {[%clk 0:00:12]} 37. Qxd5 {[%clk 0:00:20]}  Qe5 {[%clk 0:00:11]} 38. Qa8+ {[%clk 0:00:15]}  Kg7 {[%clk 0:00:10]} 39. Qxa4 {[%clk 0:00:16]}  Qd5+ {[%clk 0:00:10]} 40. Ka1 {[%clk 0:00:16]}  Rfe7 {[%clk 0:00:09]} 41. Qd1 {[%clk 0:00:16]}  Re2 {[%clk 0:00:04]} 42. Rf1 {[%clk 0:00:05]}  g5 {[%clk 0:00:01]} 43. Qc1 {[%clk 0:00:05]}  h6 {[%clk 0:00:02]} 44. Qb1 {[%clk 0:00:06]}  Qe4 {[%clk 0:00:01]} 45. Nf5+ {[%clk 0:00:05]}  Kf6 {[%clk 0:00:01]} 46. Nxe7 {[%clk 0:00:04]}  Qxb1+ {[%clk 0:00:02]} 47. Kxb1 {[%clk 0:00:05]}  Kxe7 {[%clk 0:00:02]} 48. a4 {[%clk 0:00:05]}  Kd6 {[%clk 0:00:03]} 49. Rh1 {[%clk 0:00:05]}  Kc5 {[%clk 0:00:03]} 50. Rxh6 {[%clk 0:00:06]}  Rxf2 {[%clk 0:00:03]} 51. Rf6 {[%clk 0:00:06]}  g4 {[%clk 0:00:03]} 52. Rf4 {[%clk 0:00:04]}  Rg2 {[%clk 0:00:04]} 53. b4+ {[%clk 0:00:03]}  Kc6 {[%clk 0:00:03]} 54. Rf6+ {[%clk 0:00:03]}  Kd5 {[%clk 0:00:03]} 55. Kc1 {[%clk 0:00:04]}  f2 {[%clk 0:00:03]} 56. Kd1 {[%clk 0:00:04]}  g3 {[%clk 0:00:02]} 57. Ke2 {[%clk 0:00:04]}  Rg1 {[%clk 0:00:03]} 58. Rf5+ {[%clk 0:00:03]}  Kc4 {[%clk 0:00:03]} 59. Rf4+ {[%clk 0:00:03]}  Kxc3 {[%clk 0:00:03]} 60. Rf3+ {[%clk 0:00:04]}  Kc4 {[%clk 0:00:04]} 61. Kd2 {[%clk 0:00:00]}  f1=Q {[%clk 0:00:03]} 0-1


[Site "https://www.chess.com"]

[Event "Titled Tuesday Blitz August 08 Late 2023"]
[White "MKlose11"]
[Black "Hristodoulou, Panagiotis"]
[BlackFideId "4214340"]
[WhiteElo "2668"]
[BlackElo "2494"]
[Result "0-1"]
[Round "7"]
[TimeControl "180+1"]
[Date "2023.08.08"]
[WhiteClock "0:00:31"]
[BlackClock "0:00:26"]
[Board "48"]

1. e4 {[%clk 0:02:57]}  Nf6 {[%clk 0:02:57]} 2. e5 {[%clk 0:02:57]}  Nd5 {[%clk 0:02:56]} 3. Nc3 {[%clk 0:02:58]}  e6 {[%clk 0:02:56]} 4. Nf3 {[%clk 0:02:53]}  d6 {[%clk 0:02:57]} 5. Nxd5 {[%clk 0:02:51]}  exd5 {[%clk 0:02:57]} 6. d4 {[%clk 0:02:52]}  Nc6 {[%clk 0:02:57]} 7. Bb5 {[%clk 0:02:49]}  Bg4 {[%clk 0:02:57]} 8. O-O {[%clk 0:02:48]}  Be7 {[%clk 0:02:58]} 9. h3 {[%clk 0:02:47]}  Bh5 {[%clk 0:02:58]} 10. exd6 {[%clk 0:02:46]}  Qxd6 {[%clk 0:02:57]} 11. Bxc6+ {[%clk 0:02:37]}  bxc6 {[%clk 0:02:50]} 12. g4 {[%clk 0:02:31]}  Bg6 {[%clk 0:02:50]} 13. Re1 {[%clk 0:02:29]}  O-O {[%clk 0:02:46]} 14. c3 {[%clk 0:02:29]}  Rfe8 {[%clk 0:02:43]} 15. Ne5 {[%clk 0:02:23]}  c5 {[%clk 0:02:40]} 16. Bf4 {[%clk 0:02:19]}  cxd4 {[%clk 0:01:47]} 17. Qxd4 {[%clk 0:02:08]}  c5 {[%clk 0:01:45]} 18. Nxg6 {[%clk 0:01:57]}  cxd4 {[%clk 0:01:28]} 19. Bxd6 {[%clk 0:01:56]}  Bxd6 {[%clk 0:01:27]} 20. Nh4 {[%clk 0:01:53]}  dxc3 {[%clk 0:01:25]} 21. bxc3 {[%clk 0:01:54]}  Be5 {[%clk 0:01:19]} 22. Rad1 {[%clk 0:01:42]}  Bxc3 {[%clk 0:01:14]} 23. Rxe8+ {[%clk 0:01:41]}  Rxe8 {[%clk 0:01:15]} 24. Rxd5 {[%clk 0:01:41]}  g6 {[%clk 0:01:16]} 25. Rd3 {[%clk 0:01:30]}  Ba5 {[%clk 0:01:12]} 26. Ng2 {[%clk 0:01:23]}  Re2 {[%clk 0:01:10]} 27. a3 {[%clk 0:01:16]}  Bb6 {[%clk 0:01:08]} 28. Rf3 {[%clk 0:01:14]}  Bc5 {[%clk 0:00:53]} 29. Nf4 {[%clk 0:01:07]}  Ra2 {[%clk 0:00:53]} 30. Nd5 {[%clk 0:00:54]}  Rxa3 {[%clk 0:00:51]} 31. Rf6 {[%clk 0:00:52]}  Rxh3 {[%clk 0:00:47]} 32. Rc6 {[%clk 0:00:52]}  Bd4 {[%clk 0:00:41]} 33. Rc4 {[%clk 0:00:51]}  Rd3 {[%clk 0:00:37]} 34. Kf1 {[%clk 0:00:35]}  Bb6 {[%clk 0:00:26]} 35. g5 {[%clk 0:00:31]}  Rxd5 {[%clk 0:00:26]} 0-1


[Site "https://www.chess.com"]

[Event "Titled Tuesday Blitz August 08 Late 2023"]
[White "Miladinovic, Igor"]
[Black "Principe, Alexander"]
[WhiteFideId "4203380"]
[BlackFideId "3804542"]
[WhiteElo "2764"]
[BlackElo "2571"]
[Result "1-0"]
[Round "7"]
[TimeControl "180+1"]
[Date "2023.08.08"]
[WhiteClock "0:00:28"]
[BlackClock "0:00:32"]
[Board "50"]

1. d4 {[%clk 0:03:00]}  Nf6 {[%clk 0:02:59]} 2. Bg5 {[%clk 0:02:59]}  Ne4 {[%clk 0:02:59]} 3. h4 {[%clk 0:02:59]}  c5 {[%clk 0:02:57]} 4. dxc5 {[%clk 0:02:59]}  Qa5+ {[%clk 0:02:56]} 5. Nd2 {[%clk 0:03:00]}  Nxd2 {[%clk 0:02:55]} 6. Qxd2 {[%clk 0:03:00]}  Qxc5 {[%clk 0:02:55]} 7. e4 {[%clk 0:02:58]}  Nc6 {[%clk 0:02:52]} 8. c3 {[%clk 0:02:58]}  d6 {[%clk 0:02:51]} 9. Nf3 {[%clk 0:02:58]}  Bg4 {[%clk 0:02:51]} 10. Be3 {[%clk 0:02:57]}  Qa5 {[%clk 0:02:51]} 11. Nd4 {[%clk 0:02:58]}  Bd7 {[%clk 0:02:47]} 12. f4 {[%clk 0:02:53]}  a6 {[%clk 0:02:46]} 13. Bc4 {[%clk 0:02:51]}  e6 {[%clk 0:02:31]} 14. h5 {[%clk 0:02:48]}  h6 {[%clk 0:02:30]} 15. f5 {[%clk 0:02:30]}  Ne5 {[%clk 0:02:27]} 16. fxe6 {[%clk 0:02:21]}  fxe6 {[%clk 0:02:08]} 17. Bxe6 {[%clk 0:02:18]}  O-O-O {[%clk 0:02:08]} 18. O-O {[%clk 0:02:09]}  Be7 {[%clk 0:02:04]} 19. Bd5 {[%clk 0:01:53]}  Bf6 {[%clk 0:01:59]} 20. b4 {[%clk 0:01:44]}  Qc7 {[%clk 0:01:56]} 21. c4 {[%clk 0:01:40]}  Rde8 {[%clk 0:01:54]} 22. b5 {[%clk 0:01:15]}  Ng4 {[%clk 0:01:44]} 23. bxa6 {[%clk 0:01:07]}  bxa6 {[%clk 0:01:29]} 24. Rxf6 {[%clk 0:00:57]}  gxf6 {[%clk 0:01:25]} 25. Bf4 {[%clk 0:00:57]}  Ne5 {[%clk 0:01:23]} 26. Rb1 {[%clk 0:00:56]}  Qc5 {[%clk 0:01:21]} 27. Kh1 {[%clk 0:00:54]}  Rhg8 {[%clk 0:01:10]} 28. Be3 {[%clk 0:00:53]}  Ng4 {[%clk 0:00:37]} 29. Bb7+ {[%clk 0:00:47]}  Kb8 {[%clk 0:00:30]} 30. Nc6+ {[%clk 0:00:45]}  Kc7 {[%clk 0:00:29]} 31. Bxc5 {[%clk 0:00:44]}  Nf2+ {[%clk 0:00:30]} 32. Bxf2 {[%clk 0:00:43]}  Rxe4 {[%clk 0:00:31]} 33. Na5 {[%clk 0:00:32]}  Rxg2 {[%clk 0:00:32]} 34. Kxg2 {[%clk 0:00:29]}  Re2 {[%clk 0:00:32]} 35. Qxe2 {[%clk 0:00:28]}  Bc6+ {[%clk 0:00:33]} 36. Bxc6 {[%clk 0:00:28]}  d5 {[%clk 0:00:32]} 37. Qe7+ {[%clk 0:00:27]}  Kc8 {[%clk 0:00:32]} 38. Qd7# {[%clk 0:00:28]} 1-0


[Site "https://www.chess.com"]

[Event "Titled Tuesday Blitz August 08 Late 2023"]
[White "Weetik, Vjacheslav"]
[Black "Hajiyev, Kanan"]
[WhiteFideId "4153472"]
[BlackFideId "13404148"]
[WhiteElo "2660"]
[BlackElo "2560"]
[Result "1/2-1/2"]
[Round "7"]
[TimeControl "180+1"]
[Date "2023.08.08"]
[WhiteClock "0:00:07"]
[BlackClock "0:00:23"]
[Board "52"]

1. d4 {[%clk 0:02:53]}  Nf6 {[%clk 0:02:58]} 2. c4 {[%clk 0:02:53]}  e6 {[%clk 0:02:59]} 3. g3 {[%clk 0:02:52]}  c5 {[%clk 0:02:55]} 4. d5 {[%clk 0:02:51]}  exd5 {[%clk 0:02:56]} 5. cxd5 {[%clk 0:02:50]}  d6 {[%clk 0:02:57]} 6. Nc3 {[%clk 0:02:50]}  g6 {[%clk 0:02:52]} 7. Nf3 {[%clk 0:02:49]}  Bg7 {[%clk 0:02:53]} 8. Bg2 {[%clk 0:02:49]}  O-O {[%clk 0:02:53]} 9. O-O {[%clk 0:02:50]}  Re8 {[%clk 0:02:50]} 10. Bf4 {[%clk 0:02:50]}  Bf5 {[%clk 0:02:45]} 11. Nh4 {[%clk 0:02:46]}  Bg4 {[%clk 0:02:38]} 12. h3 {[%clk 0:02:32]}  Bc8 {[%clk 0:02:39]} 13. Qc2 {[%clk 0:02:01]}  Na6 {[%clk 0:02:33]} 14. e4 {[%clk 0:01:47]}  Nh5 {[%clk 0:02:31]} 15. Be3 {[%clk 0:01:41]}  Nc7 {[%clk 0:02:19]} 16. a4 {[%clk 0:01:38]}  Na6 {[%clk 0:02:19]} 17. Qd2 {[%clk 0:01:25]}  Nb4 {[%clk 0:02:15]} 18. Kh2 {[%clk 0:01:22]}  Bd7 {[%clk 0:02:10]} 19. f4 {[%clk 0:01:20]}  f5 {[%clk 0:01:56]} 20. exf5 {[%clk 0:01:08]}  Rxe3 {[%clk 0:01:55]} 21. Qxe3 {[%clk 0:01:07]}  Nc2 {[%clk 0:01:55]} 22. Qd3 {[%clk 0:01:00]}  Nxa1 {[%clk 0:01:55]} 23. Rxa1 {[%clk 0:00:59]}  Bf6 {[%clk 0:01:50]} 24. fxg6 {[%clk 0:00:46]}  Bxh4 {[%clk 0:01:47]} 25. gxh7+ {[%clk 0:00:46]}  Kh8 {[%clk 0:01:46]} 26. gxh4 {[%clk 0:00:47]}  Qxh4 {[%clk 0:01:43]} 27. Ne2 {[%clk 0:00:45]}  Re8 {[%clk 0:01:31]} 28. Rf1 {[%clk 0:00:26]}  Bxa4 {[%clk 0:01:02]} 29. Rf3 {[%clk 0:00:20]}  a6 {[%clk 0:00:54]} 30. Re3 {[%clk 0:00:13]}  Rf8 {[%clk 0:00:48]} 31. Ng3 {[%clk 0:00:05]}  Nxf4 {[%clk 0:00:42]} 32. Qc3+ {[%clk 0:00:05]}  Qf6 {[%clk 0:00:43]} 33. Qxf6+ {[%clk 0:00:02]}  Rxf6 {[%clk 0:00:44]} 34. Re7 {[%clk 0:00:02]}  Nxg2 {[%clk 0:00:31]} 35. Kxg2 {[%clk 0:00:02]}  b5 {[%clk 0:00:27]} 36. Ne4 {[%clk 0:00:02]}  Rg6+ {[%clk 0:00:27]} 37. Kf2 {[%clk 0:00:02]}  Bc2 {[%clk 0:00:23]} 38. h4 {[%clk 0:00:01]}  Bxe4 {[%clk 0:00:23]} 39. Rxe4 {[%clk 0:00:02]}  Kxh7 {[%clk 0:00:24]} 40. Re7+ {[%clk 0:00:02]}  Kh6 {[%clk 0:00:24]} 41. Ra7 {[%clk 0:00:02]}  Kh5 {[%clk 0:00:22]} 42. Rxa6 {[%clk 0:00:03]}  Kxh4 {[%clk 0:00:22]} 43. Rb6 {[%clk 0:00:02]}  b4 {[%clk 0:00:23]} 44. Kf3 {[%clk 0:00:02]}  Kg5 {[%clk 0:00:23]} 45. Ke4 {[%clk 0:00:03]}  Rf6 {[%clk 0:00:22]} 46. Rc6 {[%clk 0:00:02]}  Kg4 {[%clk 0:00:22]} 47. Rc8 {[%clk 0:00:02]}  Kg3 {[%clk 0:00:22]} 48. Rg8+ {[%clk 0:00:02]}  Kf2 {[%clk 0:00:22]} 49. Rd8 {[%clk 0:00:02]}  Ke2 {[%clk 0:00:22]} 50. Re8 {[%clk 0:00:02]}  c4 {[%clk 0:00:21]} 51. Re6 {[%clk 0:00:03]}  Rf8 {[%clk 0:00:20]} 52. Rxd6 {[%clk 0:00:03]}  c3 {[%clk 0:00:20]} 53. bxc3 {[%clk 0:00:04]}  bxc3 {[%clk 0:00:21]} 54. Rc6 {[%clk 0:00:05]}  Kd2 {[%clk 0:00:21]} 55. d6 {[%clk 0:00:05]}  c2 {[%clk 0:00:22]} 56. Kd5 {[%clk 0:00:05]}  c1=Q {[%clk 0:00:22]} 57. Rxc1 {[%clk 0:00:05]}  Kxc1 {[%clk 0:00:22]} 58. d7 {[%clk 0:00:05]}  Kd2 {[%clk 0:00:23]} 59. Ke6 {[%clk 0:00:06]}  Ke3 {[%clk 0:00:23]} 60. Ke7 {[%clk 0:00:07]}  Rg8 {[%clk 0:00:23]} 61. d8=Q {[%clk 0:00:07]}  Rxd8 {[%clk 0:00:23]} 62. Kxd8 {[%clk 0:00:07]} 1/2-1/2


[Site "https://www.chess.com"]

[Event "Titled Tuesday Blitz August 08 Late 2023"]
[White "brm72"]
[Black "Schwabeneder, Florian"]
[BlackFideId "1626191"]
[WhiteElo "2528"]
[BlackElo "2620"]
[Result "1-0"]
[Round "7"]
[TimeControl "180+1"]
[Date "2023.08.08"]
[WhiteClock "0:00:55"]
[BlackClock "0:00:00"]
[Board "55"]

1. e4 {[%clk 0:03:00]}  c5 {[%clk 0:02:59]} 2. Nf3 {[%clk 0:03:01]}  d6 {[%clk 0:02:59]} 3. d4 {[%clk 0:03:01]}  cxd4 {[%clk 0:03:00]} 4. Nxd4 {[%clk 0:03:02]}  Nf6 {[%clk 0:03:00]} 5. Nc3 {[%clk 0:03:02]}  Nc6 {[%clk 0:03:00]} 6. Bg5 {[%clk 0:03:01]}  e6 {[%clk 0:03:00]} 7. Qd2 {[%clk 0:03:01]}  a6 {[%clk 0:03:01]} 8. f3 {[%clk 0:03:01]}  Qb6 {[%clk 0:03:00]} 9. O-O-O {[%clk 0:03:00]}  Qxd4 {[%clk 0:02:59]} 10. Qxd4 {[%clk 0:03:01]}  Nxd4 {[%clk 0:02:59]} 11. Rxd4 {[%clk 0:03:01]}  Bd7 {[%clk 0:02:54]} 12. Be2 {[%clk 0:02:52]}  Rc8 {[%clk 0:02:52]} 13. Rhd1 {[%clk 0:02:47]}  h6 {[%clk 0:02:48]} 14. Bh4 {[%clk 0:02:46]}  g5 {[%clk 0:02:41]} 15. Bg3 {[%clk 0:02:46]}  e5 {[%clk 0:02:42]} 16. R4d2 {[%clk 0:02:44]}  Be6 {[%clk 0:02:37]} 17. Nd5 {[%clk 0:02:40]}  Nxd5 {[%clk 0:02:19]} 18. exd5 {[%clk 0:02:41]}  Bf5 {[%clk 0:02:05]} 19. Bd3 {[%clk 0:02:41]}  Bxd3 {[%clk 0:02:03]} 20. Rxd3 {[%clk 0:02:42]}  f5 {[%clk 0:01:59]} 21. Rb3 {[%clk 0:02:42]}  Rh7 {[%clk 0:01:57]} 22. Kd2 {[%clk 0:02:25]}  Rc5 {[%clk 0:01:51]} 23. Rd3 {[%clk 0:02:16]}  Rhc7 {[%clk 0:01:43]} 24. c3 {[%clk 0:02:15]}  Rh7 {[%clk 0:01:24]} 25. Bf2 {[%clk 0:02:15]}  Rc8 {[%clk 0:01:24]} 26. a4 {[%clk 0:02:02]}  h5 {[%clk 0:01:23]} 27. Ra1 {[%clk 0:02:01]}  g4 {[%clk 0:01:21]} 28. Kc2 {[%clk 0:01:57]}  Rg7 {[%clk 0:01:10]} 29. Rg1 {[%clk 0:01:52]}  Be7 {[%clk 0:01:07]} 30. b4 {[%clk 0:01:51]}  Kf7 {[%clk 0:00:59]} 31. Kb3 {[%clk 0:01:49]}  Bf6 {[%clk 0:00:45]} 32. c4 {[%clk 0:01:48]}  Kg6 {[%clk 0:00:44]} 33. c5 {[%clk 0:01:47]}  Rd7 {[%clk 0:00:38]} 34. Rc1 {[%clk 0:01:42]}  dxc5 {[%clk 0:00:35]} 35. bxc5 {[%clk 0:01:38]}  e4 {[%clk 0:00:21]} 36. fxe4 {[%clk 0:01:36]}  fxe4 {[%clk 0:00:22]} 37. Rdd1 {[%clk 0:01:33]}  Bg5 {[%clk 0:00:21]} 38. Rc3 {[%clk 0:01:29]}  e3 {[%clk 0:00:21]} 39. Be1 {[%clk 0:01:18]}  Kf5 {[%clk 0:00:20]} 40. Kc4 {[%clk 0:01:15]}  Ke4 {[%clk 0:00:17]} 41. Rd4+ {[%clk 0:01:14]}  Ke5 {[%clk 0:00:17]} 42. Bg3+ {[%clk 0:01:10]}  Kf5 {[%clk 0:00:17]} 43. Rc1 {[%clk 0:01:04]}  Rdd8 {[%clk 0:00:13]} 44. Rf1+ {[%clk 0:01:01]}  Kg6 {[%clk 0:00:13]} 45. h4 {[%clk 0:00:59]}  gxh3 {[%clk 0:00:11]} 46. gxh3 {[%clk 0:00:59]}  Be7 {[%clk 0:00:08]} 47. d6 {[%clk 0:00:56]}  Bxd6 {[%clk 0:00:08]} 48. Bxd6 {[%clk 0:00:56]}  b6 {[%clk 0:00:07]} 49. Re1 {[%clk 0:00:54]}  bxc5 {[%clk 0:00:07]} 50. Bxc5 {[%clk 0:00:54]}  Rxd4+ {[%clk 0:00:00]} 51. Kxd4 {[%clk 0:00:55]} 1-0


[Site "https://www.chess.com"]

[Event "Titled Tuesday Blitz August 08 Late 2023"]
[White "Colbow, Collin"]
[Black "Sreyas Payyappat"]
[WhiteFideId "16201132"]
[BlackFideId "46674969"]
[WhiteElo "2618"]
[BlackElo "2521"]
[Result "0-1"]
[Round "7"]
[TimeControl "180+1"]
[Date "2023.08.08"]
[WhiteClock "0:00:05"]
[BlackClock "0:00:13"]
[Board "56"]

1. d4 {[%clk 0:02:55]}  Nf6 {[%clk 0:02:59]} 2. Bf4 {[%clk 0:02:55]}  c5 {[%clk 0:02:58]} 3. e3 {[%clk 0:02:54]}  e6 {[%clk 0:02:57]} 4. Nf3 {[%clk 0:02:53]}  Nc6 {[%clk 0:02:56]} 5. Nbd2 {[%clk 0:02:53]}  d5 {[%clk 0:02:54]} 6. c3 {[%clk 0:02:52]}  Nh5 {[%clk 0:02:54]} 7. Bg3 {[%clk 0:02:52]}  Nxg3 {[%clk 0:02:53]} 8. hxg3 {[%clk 0:02:53]}  g6 {[%clk 0:02:54]} 9. Bd3 {[%clk 0:02:51]}  c4 {[%clk 0:02:51]} 10. Bc2 {[%clk 0:02:49]}  b5 {[%clk 0:02:48]} 11. e4 {[%clk 0:02:46]}  Bg7 {[%clk 0:02:47]} 12. e5 {[%clk 0:02:45]}  a5 {[%clk 0:02:45]} 13. g4 {[%clk 0:02:44]}  Bd7 {[%clk 0:02:41]} 14. Qe2 {[%clk 0:02:43]}  Qb6 {[%clk 0:02:40]} 15. Ng5 {[%clk 0:02:42]}  h6 {[%clk 0:02:37]} 16. Nxf7 {[%clk 0:02:13]}  Kxf7 {[%clk 0:02:35]} 17. Qf3+ {[%clk 0:02:14]}  Ke7 {[%clk 0:02:33]} 18. Bxg6 {[%clk 0:02:15]}  Raf8 {[%clk 0:02:31]} 19. Qg3 {[%clk 0:02:15]}  Kd8 {[%clk 0:02:27]} 20. O-O {[%clk 0:02:02]}  Ne7 {[%clk 0:02:13]} 21. Bc2 {[%clk 0:01:57]}  h5 {[%clk 0:02:12]} 22. g5 {[%clk 0:01:49]}  Nf5 {[%clk 0:02:05]} 23. Bxf5 {[%clk 0:01:44]}  Rxf5 {[%clk 0:02:06]} 24. Nf3 {[%clk 0:01:43]}  Rhf8 {[%clk 0:01:52]} 25. Nh4 {[%clk 0:01:42]}  Rf4 {[%clk 0:01:40]} 26. Ng6 {[%clk 0:01:42]}  Rg4 {[%clk 0:01:40]} 27. Qh3 {[%clk 0:01:43]}  Rf5 {[%clk 0:01:39]} 28. f4 {[%clk 0:01:41]}  Be8 {[%clk 0:01:29]} 29. Qxh5 {[%clk 0:01:40]}  Rgxf4 {[%clk 0:01:22]} 30. Rxf4 {[%clk 0:01:40]}  Rxf4 {[%clk 0:01:22]} 31. Qh7 {[%clk 0:01:38]}  Rf7 {[%clk 0:01:21]} 32. Qg8 {[%clk 0:01:33]}  b4 {[%clk 0:01:12]} 33. Rf1 {[%clk 0:01:14]}  Rxf1+ {[%clk 0:00:55]} 34. Kxf1 {[%clk 0:01:15]}  bxc3 {[%clk 0:00:41]} 35. Qxg7 {[%clk 0:01:10]}  cxb2 {[%clk 0:00:37]} 36. Qe7+ {[%clk 0:01:10]}  Kc8 {[%clk 0:00:37]} 37. Qxe8+ {[%clk 0:01:10]}  Kb7 {[%clk 0:00:38]} 38. Qd7+ {[%clk 0:01:08]}  Ka6 {[%clk 0:00:38]} 39. Qc8+ {[%clk 0:01:07]}  Kb5 {[%clk 0:00:35]} 40. Qe8+ {[%clk 0:00:58]}  Kb4 {[%clk 0:00:34]} 41. Qe7+ {[%clk 0:00:58]}  Ka4 {[%clk 0:00:30]} 42. Nf4 {[%clk 0:00:27]}  b1=Q+ {[%clk 0:00:27]} 43. Kf2 {[%clk 0:00:28]}  Qf5 {[%clk 0:00:19]} 44. Kg3 {[%clk 0:00:29]}  Qb4 {[%clk 0:00:16]} 45. Qd7+ {[%clk 0:00:23]}  Ka3 {[%clk 0:00:16]} 46. Nxe6 {[%clk 0:00:17]}  Qc3+ {[%clk 0:00:15]} 47. Kh2 {[%clk 0:00:16]}  Qg4 {[%clk 0:00:13]} 48. Qe7+ {[%clk 0:00:09]}  Kxa2 {[%clk 0:00:13]} 49. g6 {[%clk 0:00:05]}  Qcg3+ {[%clk 0:00:12]} 50. Kg1 {[%clk 0:00:05]}  Qxg2# {[%clk 0:00:13]} 0-1


[Site "https://www.chess.com"]